[Event "*** Titled Tuesday Blitz"]
[Site "Chess.com"]
[Date "2021.03.02"]
[Round "3"]
[White "Korchmar_Vasiliy"]
[Black "Onischuk_V"]
[Result "1-0"]
[WhiteElo "2628"]
[BlackElo "2814"]
[TimeControl "180+1"]
[EndTime "10:29:07 PST"]
[Termination "Korchmar_Vasiliy won by checkmate"]

1. d4 {[%clk 0:03:00.9]} 1... Nf6 {[%clk 0:02:59.7]} 2. Nf3 {[%clk 0:03:01.4]}
2... g6 {[%clk 0:02:57.2]} 3. Bg5 {[%clk 0:03:01.4]} 3... Bg7 {[%clk 0:02:57.1]}
4. Nbd2 {[%clk 0:03:01.8]} 4... h6 {[%clk 0:02:54.4]} 5. Bh4 {[%clk 0:03:01.5]}
5... O-O {[%clk 0:02:53.8]} 6. e3 {[%clk 0:03:01.2]} 6... d6 {[%clk 0:02:53.9]}
7. Bd3 {[%clk 0:03:01.2]} 7... Nbd7 {[%clk 0:02:50.7]} 8. c3 {[%clk 0:02:58.1]}
8... e5 {[%clk 0:02:50.7]} 9. O-O {[%clk 0:02:54.4]} 9... Re8 {[%clk 0:02:49.2]}
10. e4 {[%clk 0:02:54.7]} 10... b6 {[%clk 0:02:40.1]} 11. Re1 {[%clk 0:02:53.5]}
11... Bb7 {[%clk 0:02:40.2]} 12. a4 {[%clk 0:02:54]} 12... a6 {[%clk 0:02:40.4]}
13. h3 {[%clk 0:02:45.9]} 13... Qb8 {[%clk 0:02:26.2]} 14. Bg3 {[%clk
0:02:42.6]} 14... c6 {[%clk 0:02:20.2]} 15. Qc2 {[%clk 0:02:40.1]} 15... Qc7
{[%clk 0:02:18]} 16. dxe5 {[%clk 0:02:19.8]} 16... dxe5 {[%clk 0:02:17.6]} 17.
Nc4 {[%clk 0:02:19.9]} 17... Nh5 {[%clk 0:02:15.6]} 18. Bh2 {[%clk 0:02:19.2]}
18... b5 {[%clk 0:02:12.8]} 19. Ne3 {[%clk 0:02:13.3]} 19... Nf4 {[%clk
0:02:07.9]} 20. Bf1 {[%clk 0:02:13.1]} 20... Ne6 {[%clk 0:02:07.6]} 21. Red1
{[%clk 0:01:59.3]} 21... Ndc5 {[%clk 0:02:02.3]} 22. Ng4 {[%clk 0:01:49.3]}
22... Ng5 {[%clk 0:01:54.4]} 23. Nfxe5 {[%clk 0:01:11.2]} 23... Rxe5 {[%clk
0:01:52.5]} 24. f4 {[%clk 0:01:05.1]} 24... Nxh3+ {[%clk 0:01:51.6]} 25. gxh3
{[%clk 0:01:02.4]} 25... Rh5 {[%clk 0:01:22.6]} 26. f5 {[%clk 0:00:55.9]} 26...
Qe7 {[%clk 0:01:18.4]} 27. Bg2 {[%clk 0:00:37]} 27... Nxa4 {[%clk 0:01:08.2]}
28. f6 {[%clk 0:00:28.7]} 28... Bxf6 {[%clk 0:01:06.1]} 29. Rd7 {[%clk
0:00:29.2]} 29... Qc5+ {[%clk 0:01:03.5]} 30. Kh1 {[%clk 0:00:29.8]} 30... Bg7
{[%clk 0:00:53.4]} 31. Rxb7 {[%clk 0:00:29.9]} 31... Rf8 {[%clk 0:00:49]} 32.
Rf1 {[%clk 0:00:29]} 32... Rg5 {[%clk 0:00:45.6]} 33. Qf2 {[%clk 0:00:22.9]}
33... Qc4 {[%clk 0:00:43.1]} 34. Nf6+ {[%clk 0:00:21.5]} 34... Bxf6 {[%clk
0:00:42.8]} 35. Qxf6 {[%clk 0:00:22.4]} 35... Qe2 {[%clk 0:00:33.7]} 36. Rf2
{[%clk 0:00:21.3]} 36... Qe1+ {[%clk 0:00:31.6]} 37. Bg1 {[%clk 0:00:17.9]}
37... Rxg2 {[%clk 0:00:19.3]} 38. Kxg2 {[%clk 0:00:10.7]} 38... Qxe4+ {[%clk
0:00:17.9]} 39. Qf3 {[%clk 0:00:11.3]} 39... Qe6 {[%clk 0:00:17]} 40. Re2 {[%clk
0:00:11.1]} 40... Qc4 {[%clk 0:00:16.9]} 41. Re4 {[%clk 0:00:08.4]} 41... Qb3
{[%clk 0:00:16.2]} 42. Re2 {[%clk 0:00:05]} 42... Nxb2 {[%clk 0:00:14.3]} 43.
Bd4 {[%clk 0:00:03.4]} 43... Nd1 {[%clk 0:00:08.8]} 44. Qf6 {[%clk 0:00:02.9]}
44... Qd5+ {[%clk 0:00:09]} 45. Kh2 {[%clk 0:00:02]} 45... Qd6+ {[%clk
0:00:07.5]} 46. Qxd6 {[%clk 0:00:01.8]} 46... Ne3 {[%clk 0:00:08.1]} 47. Qf6
{[%clk 0:00:01.9]} 47... Nf1+ {[%clk 0:00:08.1]} 48. Kg1 {[%clk 0:00:02.3]}
48... Ng3 {[%clk 0:00:07.7]} 49. Qg7# {[%clk 0:00:03.2]} 1-0

[Event "*** Titled Tuesday Blitz"]
[Site "Chess.com"]
[Date "2021.03.02"]
[Round "3"]
[White "rasmussvane"]
[Black "Volodar_Murzin"]
[Result "1-0"]
[WhiteElo "2962"]
[BlackElo "2695"]
[TimeControl "180+1"]
[EndTime "10:29:08 PST"]
[Termination "rasmussvane won on time"]

1. Nf3 {[%clk 0:03:00.9]} 1... Nf6 {[%clk 0:02:59]} 2. g3 {[%clk 0:03:01]} 2...
g6 {[%clk 0:02:59.9]} 3. Bg2 {[%clk 0:03:01.6]} 3... Bg7 {[%clk 0:03:00.2]} 4.
O-O {[%clk 0:03:02.5]} 4... O-O {[%clk 0:03:00.5]} 5. d4 {[%clk 0:03:03.1]} 5...
d6 {[%clk 0:03:00.8]} 6. Re1 {[%clk 0:03:03.5]} 6... Nbd7 {[%clk 0:03:00.2]} 7.
e4 {[%clk 0:03:03.7]} 7... e5 {[%clk 0:02:59.3]} 8. Nc3 {[%clk 0:03:04.4]} 8...
a6 {[%clk 0:02:57.7]} 9. a4 {[%clk 0:03:04.1]} 9... c6 {[%clk 0:02:55.4]} 10. a5
{[%clk 0:02:55.7]} 10... Re8 {[%clk 0:02:54.7]} 11. h3 {[%clk 0:02:55.4]} 11...
Qc7 {[%clk 0:02:44.9]} 12. Bg5 {[%clk 0:02:51.7]} 12... h6 {[%clk 0:02:43]} 13.
Be3 {[%clk 0:02:52]} 13... exd4 {[%clk 0:02:37.8]} 14. Bxd4 {[%clk 0:02:31.1]}
14... Ne5 {[%clk 0:02:34.8]} 15. Na4 {[%clk 0:02:26.8]} 15... Nfd7 {[%clk
0:02:29.4]} 16. Nxe5 {[%clk 0:02:22]} 16... Bxe5 {[%clk 0:01:19.9]} 17. Bxe5
{[%clk 0:01:47.3]} 17... dxe5 {[%clk 0:01:10.2]} 18. Qd2 {[%clk 0:01:47.3]}
18... h5 {[%clk 0:01:04.6]} 19. Red1 {[%clk 0:01:45.7]} 19... Nf8 {[%clk
0:00:54.8]} 20. Nb6 {[%clk 0:01:33.9]} 20... Rb8 {[%clk 0:00:54.2]} 21. Qd6
{[%clk 0:01:34.2]} 21... Qxd6 {[%clk 0:00:53.3]} 22. Rxd6 {[%clk 0:01:35.1]}
22... Be6 {[%clk 0:00:53.3]} 23. Rad1 {[%clk 0:01:34.4]} 23... Nh7 {[%clk
0:00:51.3]} 24. Na4 {[%clk 0:01:24.8]} 24... Kf8 {[%clk 0:00:40.5]} 25. Nc5
{[%clk 0:01:24.1]} 25... Bc8 {[%clk 0:00:40]} 26. f4 {[%clk 0:01:15.4]} 26... h4
{[%clk 0:00:33.2]} 27. Kf2 {[%clk 0:01:01.6]} 27... hxg3+ {[%clk 0:00:31.6]} 28.
Kxg3 {[%clk 0:01:02.5]} 28... exf4+ {[%clk 0:00:31.5]} 29. Kxf4 {[%clk
0:01:03.4]} 29... Kg7 {[%clk 0:00:30.7]} 30. h4 {[%clk 0:00:55]} 30... Nf8
{[%clk 0:00:29.4]} 31. Kg3 {[%clk 0:00:46.6]} 31... Ne6 {[%clk 0:00:24.3]} 32.
Na4 {[%clk 0:00:46.7]} 32... Nc7 {[%clk 0:00:18.2]} 33. b4 {[%clk 0:00:36]}
33... Nb5 {[%clk 0:00:16]} 34. R6d2 {[%clk 0:00:32.9]} 34... Be6 {[%clk
0:00:10.4]} 35. Nc5 {[%clk 0:00:33.1]} 35... Bc4 {[%clk 0:00:05.2]} 36. Rd7
{[%clk 0:00:32.5]} 36... b6 {[%clk 0:00:04.5]} 37. Nxa6 {[%clk 0:00:12.5]} 37...
Ra8 {[%clk 0:00:03.8]} 38. Nc7 {[%clk 0:00:13]} 38... Nxc7 {[%clk 0:00:02.6]}
39. Rxc7 {[%clk 0:00:13.9]} 39... bxa5 {[%clk 0:00:03.2]} 40. Rxc6 {[%clk
0:00:14.6]} 40... Ba6 {[%clk 0:00:02.1]} 41. bxa5 {[%clk 0:00:13.6]} 41... Re5
{[%clk 0:00:02.1]} 42. Rd5 {[%clk 0:00:13.1]} 42... Re7 {[%clk 0:00:01.6]} 43.
Rb6 {[%clk 0:00:08.9]} 43... Rea7 {[%clk 0:00:02.1]} 44. e5 {[%clk 0:00:08.1]}
44... Bc4 {[%clk 0:00:02.3]} 45. Rd4 {[%clk 0:00:07.3]} 45... Rc8 {[%clk
0:00:01.5]} 46. Rb7 {[%clk 0:00:04]} 46... Ra6 {[%clk 0:00:01.2]} 47. Rxc4
{[%clk 0:00:02.1]} 1-0

[Event "*** Titled Tuesday Blitz"]
[Site "Chess.com"]
[Date "2021.03.02"]
[Round "3"]
[White "rpragchess"]
[Black "Gahan-MG"]
[Result "1-0"]
[WhiteElo "2871"]
[BlackElo "2632"]
[TimeControl "180+1"]
[EndTime "10:29:09 PST"]
[Termination "rpragchess won by resignation"]

1. c4 {[%clk 0:03:00.9]} 1... Nf6 {[%clk 0:02:59.5]} 2. Nc3 {[%clk 0:03:01.1]}
2... d5 {[%clk 0:02:59.6]} 3. cxd5 {[%clk 0:03:01]} 3... Nxd5 {[%clk 0:03:00.5]}
4. Nf3 {[%clk 0:03:01.6]} 4... g6 {[%clk 0:03:00.8]} 5. h4 {[%clk 0:03:01.5]}
5... h5 {[%clk 0:03:00.6]} 6. e4 {[%clk 0:02:59.3]} 6... Nxc3 {[%clk 0:03:00.5]}
7. dxc3 {[%clk 0:03:00.2]} 7... Qxd1+ {[%clk 0:03:00.4]} 8. Kxd1 {[%clk
0:03:01.1]} 8... Bg7 {[%clk 0:03:00.4]} 9. Kc2 {[%clk 0:02:52.1]} 9... Bg4
{[%clk 0:02:53.6]} 10. Bf4 {[%clk 0:02:51.8]} 10... c6 {[%clk 0:02:53.2]} 11.
Bc4 {[%clk 0:02:38.7]} 11... Bxf3 {[%clk 0:02:52.6]} 12. gxf3 {[%clk 0:02:38.7]}
12... Nd7 {[%clk 0:02:52.2]} 13. Rad1 {[%clk 0:02:38.4]} 13... Ne5 {[%clk
0:02:45.1]} 14. Be2 {[%clk 0:02:36.4]} 14... Rd8 {[%clk 0:02:37]} 15. Be3 {[%clk
0:02:34.4]} 15... b6 {[%clk 0:02:22.7]} 16. a4 {[%clk 0:02:31.1]} 16... Bf6
{[%clk 0:02:14.2]} 17. Ra1 {[%clk 0:02:10.8]} 17... O-O {[%clk 0:01:57.7]} 18.
a5 {[%clk 0:02:08.9]} 18... c5 {[%clk 0:01:57.5]} 19. f4 {[%clk 0:02:03.1]}
19... Nc6 {[%clk 0:01:54.5]} 20. axb6 {[%clk 0:01:51.5]} 20... axb6 {[%clk
0:01:55.4]} 21. Ra6 {[%clk 0:01:51.7]} 21... Rb8 {[%clk 0:01:40.8]} 22. e5
{[%clk 0:01:44.9]} 22... Bg7 {[%clk 0:01:38]} 23. Rd1 {[%clk 0:01:42.3]} 23...
Rfd8 {[%clk 0:01:30]} 24. Rxd8+ {[%clk 0:01:14.7]} 24... Nxd8 {[%clk 0:01:29.6]}
25. Ra7 {[%clk 0:01:15.1]} 25... Kf8 {[%clk 0:01:26.7]} 26. Bd3 {[%clk
0:01:09.4]} 26... e6 {[%clk 0:01:18.2]} 27. Be4 {[%clk 0:01:06.5]} 27... Ke8
{[%clk 0:01:07.8]} 28. f3 {[%clk 0:00:58.6]} 28... Bf8 {[%clk 0:01:07.3]} 29.
Bd3 {[%clk 0:00:42.4]} 29... Be7 {[%clk 0:01:06.2]} 30. Bb5+ {[%clk 0:00:33.2]}
30... Kf8 {[%clk 0:01:06.1]} 31. f5 {[%clk 0:00:32.9]} 31... Bxh4 {[%clk
0:00:57.8]} 32. Bh6+ {[%clk 0:00:29.1]} 32... Kg8 {[%clk 0:00:57.7]} 33. fxg6
{[%clk 0:00:26.2]} 33... Rb7 {[%clk 0:00:48.6]} 34. Rxb7 {[%clk 0:00:20.1]}
34... Nxb7 {[%clk 0:00:49.5]} 35. Be8 {[%clk 0:00:20.3]} 35... Nd8 {[%clk
0:00:45.2]} 36. gxf7+ {[%clk 0:00:16.8]} 36... Nxf7 {[%clk 0:00:44.9]} 37. Bf4
{[%clk 0:00:17.2]} 37... Bd8 {[%clk 0:00:37.7]} 38. Bd7 {[%clk 0:00:16.6]} 38...
Ng5 {[%clk 0:00:29.3]} 39. Bxg5 {[%clk 0:00:12.3]} 39... Bxg5 {[%clk 0:00:30.2]}
40. Bxe6+ {[%clk 0:00:13.2]} 40... Kf8 {[%clk 0:00:30.3]} 41. Kd3 {[%clk
0:00:13.6]} 41... Ke7 {[%clk 0:00:27.1]} 42. Bh3 {[%clk 0:00:13.6]} 42... Bc1
{[%clk 0:00:26.1]} 43. b3 {[%clk 0:00:13.6]} 43... h4 {[%clk 0:00:22.7]} 44. c4
{[%clk 0:00:12.3]} 44... Bb2 {[%clk 0:00:16.6]} 45. Ke4 {[%clk 0:00:13.2]} 45...
Ba1 {[%clk 0:00:16.5]} 46. f4 {[%clk 0:00:13.5]} 46... Bc3 {[%clk 0:00:16.2]}
47. f5 {[%clk 0:00:13.8]} 47... Kf7 {[%clk 0:00:15.6]} 48. Bg4 {[%clk
0:00:11.7]} 48... Ke7 {[%clk 0:00:15.3]} 49. Kf4 {[%clk 0:00:11.7]} 49... Kf7
{[%clk 0:00:14]} 50. Ke4 {[%clk 0:00:11.6]} 50... Ke7 {[%clk 0:00:14.1]} 51. f6+
{[%clk 0:00:12]} 51... Kf7 {[%clk 0:00:14.1]} 52. Kf5 {[%clk 0:00:12.6]} 52...
Bb2 {[%clk 0:00:10.1]} 53. e6+ {[%clk 0:00:12.4]} 53... Kf8 {[%clk 0:00:10.5]}
54. e7+ {[%clk 0:00:12.7]} 1-0

[Event "*** Titled Tuesday Blitz"]
[Site "Chess.com"]
[Date "2021.03.02"]
[Round "3"]
[White "tjychess"]
[Black "Tekushka"]
[Result "1-0"]
[WhiteElo "2737"]
[BlackElo "2442"]
[TimeControl "180+1"]
[EndTime "10:29:09 PST"]
[Termination "tjychess won on time"]

1. d4 {[%clk 0:03:00.9]} 1... Nf6 {[%clk 0:02:59.1]} 2. c4 {[%clk 0:03:00.3]}
2... c6 {[%clk 0:02:59.3]} 3. Nf3 {[%clk 0:02:59.8]} 3... d5 {[%clk 0:02:59.2]}
4. Nc3 {[%clk 0:02:58.9]} 4... dxc4 {[%clk 0:02:57.1]} 5. a4 {[%clk 0:02:59.5]}
5... Bf5 {[%clk 0:02:56.5]} 6. e3 {[%clk 0:03:00.1]} 6... e6 {[%clk 0:02:55.1]}
7. Bxc4 {[%clk 0:03:00.2]} 7... Bb4 {[%clk 0:02:52.6]} 8. O-O {[%clk 0:03:00.8]}
8... O-O {[%clk 0:02:44.5]} 9. Qe2 {[%clk 0:03:00.6]} 9... Bg6 {[%clk
0:02:37.1]} 10. Ne5 {[%clk 0:03:00.5]} 10... Nbd7 {[%clk 0:02:34.8]} 11. Nxg6
{[%clk 0:02:59.6]} 11... hxg6 {[%clk 0:02:35]} 12. e4 {[%clk 0:02:37.6]} 12...
Nb6 {[%clk 0:02:31.4]} 13. e5 {[%clk 0:02:03.6]} 13... Nfd5 {[%clk 0:02:08.2]}
14. Ne4 {[%clk 0:01:57.9]} 14... Nxc4 {[%clk 0:02:05.3]} 15. Qxc4 {[%clk
0:01:58.8]} 15... f6 {[%clk 0:01:44.8]} 16. exf6 {[%clk 0:01:23.2]} 16... gxf6
{[%clk 0:01:44.5]} 17. Qd3 {[%clk 0:01:23.3]} 17... Kg7 {[%clk 0:01:32.7]} 18.
Bd2 {[%clk 0:01:05.3]} 18... Be7 {[%clk 0:01:30.4]} 19. Qh3 {[%clk 0:01:00.2]}
19... Rh8 {[%clk 0:01:01.4]} 20. Qxe6 {[%clk 0:00:59.8]} 20... Qc8 {[%clk
0:01:00.9]} 21. Qxc8 {[%clk 0:00:56.9]} 21... Raxc8 {[%clk 0:01:00.9]} 22. Rfe1
{[%clk 0:00:57.5]} 22... Kf7 {[%clk 0:00:58.1]} 23. Rad1 {[%clk 0:00:39.8]}
23... Rcd8 {[%clk 0:00:54.3]} 24. h3 {[%clk 0:00:38]} 24... Rd7 {[%clk 0:00:54]}
25. Bc3 {[%clk 0:00:33.5]} 25... Nc7 {[%clk 0:00:48.8]} 26. Rd3 {[%clk
0:00:32.3]} 26... Rhd8 {[%clk 0:00:46.1]} 27. Rf3 {[%clk 0:00:30]} 27... Rd5
{[%clk 0:00:36]} 28. Rfe3 {[%clk 0:00:15.9]} 28... R8d7 {[%clk 0:00:34.6]} 29.
g4 {[%clk 0:00:13.8]} 29... b5 {[%clk 0:00:25.9]} 30. b3 {[%clk 0:00:11.3]}
30... bxa4 {[%clk 0:00:11.2]} 31. bxa4 {[%clk 0:00:12.2]} 31... Na6 {[%clk
0:00:01.7]} 32. Kg2 {[%clk 0:00:09.3]} 32... Rb7 {[%clk 0:00:01.5]} 33. Rf3
{[%clk 0:00:08.2]} 33... Rb3 {[%clk 0:00:01.6]} 34. Ree3 {[%clk 0:00:07.1]}
34... Ra3 {[%clk 0:00:01.8]} 35. Bd2 {[%clk 0:00:03.4]} 35... Rxa4 {[%clk
0:00:01.9]} 36. Nc3 {[%clk 0:00:03.3]} 36... Rc4 {[%clk 0:00:01.8]} 37. Nxd5
{[%clk 0:00:03.5]} 37... cxd5 {[%clk 0:00:02.5]} 38. Rb3 {[%clk 0:00:03]} 38...
Nc7 {[%clk 0:00:02.6]} 39. Rb7 {[%clk 0:00:02.9]} 39... Ne6 {[%clk 0:00:02.9]}
40. Be3 {[%clk 0:00:03.5]} 40... Rc6 {[%clk 0:00:03.1]} 41. Rxa7 {[%clk
0:00:03.9]} 41... Rb6 {[%clk 0:00:03]} 42. Ra5 {[%clk 0:00:04.5]} 42... Bd6
{[%clk 0:00:02.8]} 43. Rxd5 {[%clk 0:00:04.4]} 43... Bc7 {[%clk 0:00:02.6]} 44.
Rd7+ {[%clk 0:00:04.5]} 44... Ke8 {[%clk 0:00:03]} 45. Rh7 {[%clk 0:00:05.2]}
45... Nf8 {[%clk 0:00:01.2]} 46. Rh8 {[%clk 0:00:05.3]} 46... Kf7 {[%clk
0:00:01.4]} 47. Bh6 {[%clk 0:00:06]} 1-0

[Event "*** Titled Tuesday Blitz"]
[Site "Chess.com"]
[Date "2021.03.02"]
[Round "3"]
[White "dachessmandan"]
[Black "felipelobo"]
[Result "0-1"]
[WhiteElo "2467"]
[BlackElo "2180"]
[TimeControl "180+1"]
[EndTime "10:29:11 PST"]
[Termination "felipelobo won on time"]

1. e4 {[%clk 0:03:00.9]} 1... c5 {[%clk 0:02:55.9]} 2. d3 {[%clk 0:02:56.8]}
2... g6 {[%clk 0:02:53.6]} 3. Nf3 {[%clk 0:02:52.6]} 3... Bg7 {[%clk 0:02:51.6]}
4. g3 {[%clk 0:02:53.2]} 4... Nc6 {[%clk 0:02:50.6]} 5. Bg2 {[%clk 0:02:53.6]}
5... Nf6 {[%clk 0:02:49.5]} 6. O-O {[%clk 0:02:52.4]} 6... d6 {[%clk 0:02:49.1]}
7. Nc3 {[%clk 0:02:50.5]} 7... O-O {[%clk 0:02:48.7]} 8. Bf4 {[%clk 0:02:47.4]}
8... e5 {[%clk 0:02:41.6]} 9. Bg5 {[%clk 0:02:44.6]} 9... h6 {[%clk 0:02:40.1]}
10. Bd2 {[%clk 0:02:39.2]} 10... Nd4 {[%clk 0:02:38.2]} 11. Nxd4 {[%clk
0:02:34.7]} 11... cxd4 {[%clk 0:02:37.3]} 12. Ne2 {[%clk 0:02:34.7]} 12... d5
{[%clk 0:02:26.6]} 13. exd5 {[%clk 0:02:20.6]} 13... Nxd5 {[%clk 0:02:26.5]} 14.
f4 {[%clk 0:02:20.8]} 14... Ne3 {[%clk 0:01:47]} 15. Bxe3 {[%clk 0:02:17]} 15...
dxe3 {[%clk 0:01:47.1]} 16. Qc1 {[%clk 0:02:17.4]} 16... exf4 {[%clk 0:01:42.7]}
17. Nxf4 {[%clk 0:02:17.2]} 17... e2 {[%clk 0:01:28.4]} 18. Nxe2 {[%clk
0:02:15.1]} 18... Qb6+ {[%clk 0:01:28.1]} 19. d4 {[%clk 0:01:55.5]} 19... Bxd4+
{[%clk 0:01:23.8]} 20. Nxd4 {[%clk 0:01:56.4]} 20... Qxd4+ {[%clk 0:01:24.2]}
21. Kh1 {[%clk 0:01:55.7]} 21... Kg7 {[%clk 0:01:18.5]} 22. c3 {[%clk
0:01:54.2]} 22... Qe5 {[%clk 0:00:54.9]} 23. Qd2 {[%clk 0:01:48.9]} 23... Be6
{[%clk 0:00:52.5]} 24. Rae1 {[%clk 0:01:43.4]} 24... Qb5 {[%clk 0:00:40.1]} 25.
Qd4+ {[%clk 0:01:41.4]} 25... Kg8 {[%clk 0:00:38.6]} 26. Rf6 {[%clk 0:01:32.1]}
26... Rad8 {[%clk 0:00:37.7]} 27. Qf4 {[%clk 0:00:52.7]} 27... Qg5 {[%clk
0:00:34.9]} 28. Qxg5 {[%clk 0:00:38.5]} 28... hxg5 {[%clk 0:00:35.8]} 29. Bxb7
{[%clk 0:00:38.7]} 29... Rb8 {[%clk 0:00:33.5]} 30. Be4 {[%clk 0:00:36.2]} 30...
Rxb2 {[%clk 0:00:30.6]} 31. Bxg6 {[%clk 0:00:36.3]} 31... Kg7 {[%clk 0:00:27.6]}
32. Rfxe6 {[%clk 0:00:25.5]} 32... fxe6 {[%clk 0:00:25]} 33. Bd3 {[%clk
0:00:19.9]} 33... Rff2 {[%clk 0:00:23.7]} 34. Rxe6 {[%clk 0:00:19.8]} 34...
Rxh2+ {[%clk 0:00:21.3]} 35. Kg1 {[%clk 0:00:19.8]} 35... Rbg2+ {[%clk
0:00:19.6]} 36. Kf1 {[%clk 0:00:19.8]} 36... Rxa2 {[%clk 0:00:19.5]} 37. Kg1
{[%clk 0:00:11.4]} 37... Rag2+ {[%clk 0:00:18.9]} 38. Kf1 {[%clk 0:00:11.2]}
38... Rf2+ {[%clk 0:00:19.3]} 39. Kg1 {[%clk 0:00:11.5]} 39... Rhg2+ {[%clk
0:00:16]} 40. Kh1 {[%clk 0:00:11.7]} 40... Rxg3 {[%clk 0:00:15.9]} 41. Be4
{[%clk 0:00:10.1]} 41... Rxc3 {[%clk 0:00:12]} 42. Kg1 {[%clk 0:00:05.3]} 42...
Re2 {[%clk 0:00:09.7]} 43. Rg6+ {[%clk 0:00:04]} 43... Kf7 {[%clk 0:00:08.9]}
44. Kf1 {[%clk 0:00:03.2]} 44... Rxe4 {[%clk 0:00:07.7]} 45. Rxg5 {[%clk
0:00:03.7]} 45... Ra4 {[%clk 0:00:06.2]} 46. Ke2 {[%clk 0:00:03]} 46... Ra2+
{[%clk 0:00:05.8]} 47. Kd1 {[%clk 0:00:03.4]} 47... Rh3 {[%clk 0:00:05.7]} 0-1

[Event "*** Titled Tuesday Blitz"]
[Site "Chess.com"]
[Date "2021.03.02"]
[Round "3"]
[White "mbachez"]
[Black "GMJustin"]
[Result "1-0"]
[WhiteElo "2461"]
[BlackElo "2247"]
[TimeControl "180+1"]
[EndTime "10:29:13 PST"]
[Termination "mbachez won on time"]

1. e4 {[%clk 0:03:00.9]} 1... c5 {[%clk 0:02:59.4]} 2. Nf3 {[%clk 0:02:56.6]}
2... d6 {[%clk 0:02:55.2]} 3. Bb5+ {[%clk 0:02:56]} 3... Bd7 {[%clk 0:02:54.3]}
4. Bxd7+ {[%clk 0:02:53.8]} 4... Qxd7 {[%clk 0:02:54.3]} 5. O-O {[%clk
0:02:53.1]} 5... Nf6 {[%clk 0:02:52.8]} 6. Re1 {[%clk 0:02:51.8]} 6... Nc6
{[%clk 0:02:44.6]} 7. c3 {[%clk 0:02:51.8]} 7... e6 {[%clk 0:02:41.1]} 8. d4
{[%clk 0:02:51.8]} 8... cxd4 {[%clk 0:02:40]} 9. cxd4 {[%clk 0:02:52.5]} 9... d5
{[%clk 0:02:39.8]} 10. e5 {[%clk 0:02:51.6]} 10... Ne4 {[%clk 0:02:39.8]} 11.
Nbd2 {[%clk 0:02:52]} 11... Nxd2 {[%clk 0:02:38]} 12. Bxd2 {[%clk 0:02:51.4]}
12... Bb4 {[%clk 0:02:28.5]} 13. Bxb4 {[%clk 0:02:43.4]} 13... Nxb4 {[%clk
0:02:28.4]} 14. Qd2 {[%clk 0:02:43.5]} 14... Nc6 {[%clk 0:02:25.6]} 15. h4
{[%clk 0:02:38.2]} 15... O-O {[%clk 0:02:20]} 16. h5 {[%clk 0:02:37.8]} 16... f6
{[%clk 0:02:13.6]} 17. exf6 {[%clk 0:02:36.3]} 17... Rxf6 {[%clk 0:02:13]} 18.
Ne5 {[%clk 0:02:36.2]} 18... Nxe5 {[%clk 0:02:11.5]} 19. Rxe5 {[%clk 0:02:36.9]}
19... Raf8 {[%clk 0:02:07.5]} 20. f3 {[%clk 0:02:36.9]} 20... Rf5 {[%clk
0:02:02.3]} 21. Rae1 {[%clk 0:02:35.2]} 21... Rxe5 {[%clk 0:02:00.3]} 22. Rxe5
{[%clk 0:02:35.3]} 22... Rf5 {[%clk 0:01:57]} 23. Rxf5 {[%clk 0:02:35.3]} 23...
exf5 {[%clk 0:01:56.7]} 24. h6 {[%clk 0:02:36.2]} 24... g6 {[%clk 0:01:41.6]}
25. Qe3 {[%clk 0:02:25]} 25... Kf7 {[%clk 0:00:49.2]} 26. Qe5 {[%clk 0:02:20.3]}
26... Qe6 {[%clk 0:00:45]} 27. Qg7+ {[%clk 0:02:11.9]} 27... Ke8 {[%clk
0:00:43.8]} 28. Kh2 {[%clk 0:01:49.2]} 28... Qe7 {[%clk 0:00:15.4]} 29. Qg8+
{[%clk 0:01:44.4]} 29... Qf8 {[%clk 0:00:15.1]} 30. Qxh7 {[%clk 0:01:43.9]}
30... Qf6 {[%clk 0:00:07.9]} 31. Kh3 {[%clk 0:01:11.2]} 31... Qg5 {[%clk
0:00:06.2]} 32. Qg8+ {[%clk 0:01:06]} 32... Ke7 {[%clk 0:00:05.7]} 33. Qg7+
{[%clk 0:01:05.6]} 33... Kd6 {[%clk 0:00:03.3]} 34. Qe5+ {[%clk 0:00:58.6]}
34... Kc6 {[%clk 0:00:03]} 35. Qe6+ {[%clk 0:00:55.6]} 35... Kc7 {[%clk
0:00:01.8]} 36. Qf7+ {[%clk 0:00:29.6]} 36... Kc6 {[%clk 0:00:01]} 37. Qe8+
{[%clk 0:00:28.5]} 37... Kc7 {[%clk 0:00:01.3]} 38. h7 {[%clk 0:00:18.3]} 38...
Qh6+ {[%clk 0:00:01.2]} 39. Kg3 {[%clk 0:00:18.4]} 39... Qxh7 {[%clk 0:00:01.6]}
40. Qe5+ {[%clk 0:00:18]} 40... Kc6 {[%clk 0:00:01.9]} 41. Qe6+ {[%clk
0:00:17.6]} 41... Kc7 {[%clk 0:00:02.2]} 42. Qxd5 {[%clk 0:00:16.7]} 42... Qh6
{[%clk 0:00:02.2]} 43. Qc5+ {[%clk 0:00:15.1]} 43... Kd7 {[%clk 0:00:02.2]} 44.
Qd5+ {[%clk 0:00:14.7]} 44... Kc7 {[%clk 0:00:02.5]} 45. Qe5+ {[%clk 0:00:14.9]}
45... Kd7 {[%clk 0:00:02.6]} 46. Qf4 {[%clk 0:00:15]} 46... Qh5 {[%clk
0:00:02.4]} 47. Qh4 {[%clk 0:00:13.7]} 47... f4+ {[%clk 0:00:01.3]} 48. Qxf4
{[%clk 0:00:13.2]} 1-0